Workbook

Sheet 项目详细进度计划
A1: 南京长江隧道管养信息系统项目详细进度计划
A3: 当前状态 | B3: WBS | C3: 任务说明 | D3: 参与人员 | E3: 计划 开始日期 | F3: 计划 完成日期 | G3: 计划工作量 (人时) | H3: 实际 开始日期 | I3: 实际 结束日期 | J3: 实际工作量 (人时) | K3: 进度偏差 (天) | L3: 工作量偏差 (人时) | M3: Remark
A4: =IF(AND(B4="",C4=""),"",IF(H4="","Wait",IF(I4="","Processing","Finished"))) -> Finished | B4: 需求调研与分析 | E4: =IF(COUNTA(E5:E11)>0,MIN(E5:E11),"") -> 2014-02-26 | F4: =IF(COUNTA(F5:F11)>0,MAX(F5:F11),"") -> 2014-04-10 | G4: =SUM(G5:G11) -> 300 | H4: =IF(COUNTA(H5:H11)>0,MIN(H5:H11),"") -> 2014-02-26 | I4: =IF(COUNTA(I5:I11)>0,MAX(I5:I11),"") -> 2014-04-10 | J4: =SUM(J5:J11) -> 314 | K4: =SUM(K5:K14) -> 52 | L4: =SUM(L5:L14) -> 30
A5: Finished | C5: 需求调研 | D5: 高才驰，戴鹏飞，孙强，张雁飞 | E5: 2014-02-26 | F5: 2014-03-18 | G5: 120 | H5: 2014-02-26 | I5: 2014-03-18 | J5: 128 | K5: =IF(OR(F5=0,I5=0),0,I5-F5) -> 0 | L5: 8
A6: Finished | C6: 编制调研报告 | D6: 高才驰，戴鹏飞，王晓勇 | E6: 2014-03-17 | F6: 2014-03-20 | G6: 40 | H6: 2014-03-17 | I6: 2014-03-19 | J6: 32 | K6: -1 | L6: -8
A7: Finished | C7: 与客户确认调研报告 | D7: 高才驰，戴鹏飞，王晓勇，业主 | E7: 2014-03-21 | F7: 2014-03-21 | G7: 12 | H7: 2014-03-20 | I7: 2014-03-20 | J7: 12 | K7: -1 | L7: 0
A8: Finished | C8: 需求分析，编写需求规格说明书 | D8: 高才驰,戴鹏飞，王晓勇 | E8: 2014-03-24 | F8: 2014-04-03 | G8: 60 | H8: 2014-03-21 | I8: 2014-04-03 | J8: 64 | K8: 0 | L8: 4
A9: Finished | C9: 评审需求规格说明书 | D9: 项目团队，业主 | E9: 2014-04-04 | F9: 2014-04-04 | G9: 40 | H9: 2014-04-04 | I9: 2014-04-04 | J9: 40 | K9: 0 | L9: 0
A10: Finished | C10: 需求规格说明书评审意见修改及定稿 | D10: 高才驰,戴鹏飞，王晓勇 | E10: 2014-04-07 | F10: 2014-04-09 | G10: 24 | H10: 2014-04-07 | I10: 2014-04-09 | J10: 32 | K10: 0 | L10: 8
A11: =IF(AND(B11="",C11=""),"",IF(H11="","Wait",IF(I11="","Processing","Finished"))) -> Finished | C11: 发布需求基线 | D11: 袁晓冬，高才驰 | E11: 2014-04-10 | F11: 2014-04-10 | G11: 4 | H11: 2014-04-10 | I11: 2014-04-10 | J11: 6 | K11: =IF(OR(F11=0,I11=0),0,I11-F11) -> 0 | L11: =IF(OR(G11=0,J11=0),0,J11-G11) -> 2
A12: Finished | B12: 系统设计 | E12: =IF(COUNTA(E13:E19)>0,MIN(E13:E19),"") -> 2014-04-01 | F12: =IF(COUNTA(F13:F19)>0,MAX(F13:F19),"") -> 2014-04-25 | G12: =SUM(G13:G19) -> 476 | H12: =IF(COUNTA(H13:H19)>0,MIN(H13:H19),"") -> 2014-04-01 | I12: =IF(COUNTA(I13:I19)>0,MAX(I13:I19),"") -> 2014-05-04 | J12: =SUM(J13:J19) -> 484 | K12: =SUM(K13:K19) -> 46
A13: Finished | C13: 系统设计 | D13: 高才驰，马英虎，孙强 | E13: 2014-04-01 | F13: 2014-04-17 | G13: 360 | H13: 2014-04-01 | I13: 2014-04-25 | J13: 376 | K13: =IF(OR(F13=0,I13=0),0,I13-F13) -> 8 | L13: 16
A14: =IF(AND(B14="",C14=""),"",IF(H14="","Wait",IF(I14="","Processing","Finished"))) -> Finished | C14: 技术框架决策分析 | D14: 高才驰，孙强，马英虎 | E14: 2014-04-04 | F14: 2014-04-04 | G14: 16 | H14: 2014-04-04 | I14: 2014-04-04 | J14: 16 | K14: =IF(OR(F14=0,I14=0),0,I14-F14) -> 0 | L14: =IF(OR(G14=0,J14=0),0,J14-G14) -> 0
A15: Finished | C15: 建立模块开发管理表 | D15: 高才驰 | E15: 2014-04-07 | F15: 2014-04-07 | G15: 4 | H15: 2014-04-07 | I15: 2014-04-07 | J15: 4 | K15: =IF(OR(F15=0,I15=0),0,I15-F15) -> 0 | L15: =IF(OR(G15=0,J15=0),0,J15-G15) -> 0
A16: =IF(AND(B16="",C16=""),"",IF(H16="","Wait",IF(I16="","Processing","Finished"))) -> Finished | C16: 评审设计文档 | D16: 项目团队 | E16: 2014-04-18 | F16: 2014-04-18 | G16: 40 | H16: 2014-04-28 | I16: 2014-04-28 | J16: 40 | K16: =IF(OR(F16=0,I16=0),0,I16-F16) -> 10 | L16: =IF(OR(G16=0,J16=0),0,J16-G16) -> 0
A17: Finished | C17: 设计文档评审意见修改及定稿 | D17: 高才驰，马英虎 | E17: 2014-04-21 | F17: 2014-04-24 | G17: 48 | H17: 2014-04-29 | I17: 2014-05-04 | J17: 40 | K17: =IF(OR(F17=0,I17=0),0,I17-F17) -> 10 | L17: =IF(OR(G17=0,J17=0),0,J17-G17) -> -8
A18: Finished | C18: 发布设计基线 | D18: 袁晓东，高才驰 | E18: 2014-04-25 | F18: 2014-04-25 | G18: 4 | H18: 2014-05-04 | I18: 2014-05-04 | J18: 4 | K18: 9 | L18: 0
A19: =IF(AND(B19="",C19=""),"",IF(H19="","Wait",IF(I19="","Processing","Finished"))) -> Finished | C19: 编制需求及设计里程碑报告 | D19: 高才驰 | E19: 2014-04-25 | F19: 2014-04-25 | G19: 4 | H19: 2014-05-04 | I19: 2014-05-04 | J19: 4 | K19: =IF(OR(F19=0,I19=0),0,I19-F19) -> 9 | L19: =IF(OR(G19=0,J19=0),0,J19-G19) -> 0
A20: Finished | B20: 编码与测试 | E20: =IF(COUNTA(E21:E47)>0,MIN(E21:E47),"") -> 2014-04-28 | F20: =IF(COUNTA(F21:F47)>0,MAX(F21:F47),"") -> 2014-07-25 | G20: =SUM(G21:G47) -> 2508 | H20: =IF(COUNTA(H21:H47)>0,MIN(H21:H47),"") -> 2014-04-28 | I20: =IF(COUNTA(I21:I47)>0,MAX(I21:I47),"") -> 2014-07-25 | J20: =SUM(J21:J47) -> 2516 | K20: =SUM(K21:K47) -> 15
A21: Finished | C21: 制定编码规范 | D21: 马英虎 | E21: 2014-04-28 | F21: 2014-04-28 | G21: 8 | H21: 2014-04-28 | I21: 2014-04-30 | J21: 6 | K21: =IF(OR(F21=0,I21=0),0,I21-F21) -> 2 | L21: -2
A22: =IF(AND(B22="",C22=""),"",IF(H22="","Wait",IF(I22="","Processing","Finished"))) -> Finished | C22: 搭建开发环境 | D22: 马英虎 | E22: 2014-04-29 | F22: 2014-04-30 | G22: 16 | H22: 2014-05-05 | I22: 2014-05-05 | J22: 10 | K22: 5 | L22: -6
A23: Finished | C23: 测试用例设计 | D23: 高才驰，马英虎，殷萍 | E23: 2014-05-19 | F23: 2014-05-30 | G23: 200 | H23: 2014-05-19 | I23: 2014-05-30 | J23: 216 | K23: =IF(OR(F23=0,I23=0),0,I23-F23) -> 0 | L23: =IF(OR(G23=0,J23=0),0,J23-G23) -> 16
A24: =IF(AND(B24="",C24=""),"",IF(H24="","Wait",IF(I24="","Processing","Finished"))) -> Finished | C24: 测试用例评审 | D24: 高才驰，马英虎，朱玲，殷萍 | E24: 2014-06-02 | F24: 2014-06-02 | G24: 16 | H24: 2014-06-02 | I24: 2014-06-02 | J24: 16 | K24: =IF(OR(F24=0,I24=0),0,I24-F24) -> 0 | L24: =IF(OR(G24=0,J24=0),0,J24-G24) -> 0
A25: =IF(AND(B25="",C25=""),"",IF(H25="","Wait",IF(I25="","Processing","Finished"))) -> Finished | C25: 测试用例修改及定稿 | D25: 马英虎，殷萍 | E25: 2014-06-03 | F25: 2014-06-06 | G25: 16 | H25: 2014-06-03 | I25: 2014-06-06 | J25: 16 | K25: =IF(OR(F25=0,I25=0),0,I25-F25) -> 0 | L25: =IF(OR(G25=0,J25=0),0,J25-G25) -> 0
A26: Finished | C26: 页面设计 | D26: 潘虎 | E26: 2014-05-04 | F26: 2014-05-23 | G26: 120 | H26: 2014-05-04 | I26: 2014-05-23 | J26: 120 | K26: =IF(OR(F26=0,I26=0),0,I26-F26) -> 0 | L26: 0
A27: Finished | C27: 编码-M3-F01-系统登录 | D27: 孙强 | E27: 2014-05-04 | F27: 2014-05-09 | G27: 40 | H27: 2014-05-06 | I27: 2014-05-12 | J27: 48 | K27: 3 | L27: 8
A28: Finished | C28: 编码-M3-F01-系统主界面 | D28: 陈飞 | E28: 2014-05-04 | F28: 2014-05-09 | G28: 40 | H28: 2014-05-06 | I28: 2014-05-09 | J28: 32 | K28: 0 | L28: -8
A29: Finished | C29: 编码-M3-F03-人员、机构、权限、系统参数维护 | D29: 马英虎 | E29: 2014-05-04 | F29: 2014-05-06 | G29: 24 | H29: 2014-05-06 | I29: 2014-05-08 | J29: 24 | K29: =IF(OR(F29=0,I29=0),0,I29-F29) -> 2 | L29: =IF(OR(G29=0,J29=0),0,J29-G29) -> 0
A30: Finished | C30: 编码-M1-F01-设施设备管理 | D30: 马英虎 | E30: 2014-05-07 | F30: 2014-05-09 | G30: 24 | H30: 2014-05-09 | I30: 2014-05-11 | J30: 24 | K30: =IF(OR(F30=0,I30=0),0,I30-F30) -> 2 | L30: =IF(OR(G30=0,J30=0),0,J30-G30) -> 0
A31: =IF(AND(B31="",C31=""),"",IF(H31="","Wait",IF(I31="","Processing","Finished"))) -> Finished | C31: 编码-M1-F02-巡检标准维护 | D31: 马英虎 | E31: 2014-05-12 | F31: 2014-05-16 | G31: 40 | H31: 2014-05-12 | I31: 2014-05-16 | J31: 40 | K31: 0 | L31: 0
A32: Finished | C32: 编码-M1-F03-巡检任务管理 | D32: 马英虎 | E32: 2014-05-19 | F32: 2014-05-23 | G32: 40 | H32: 2014-05-19 | I32: 2014-05-23 | J32: 40 | K32: 0 | L32: 0
A33: Finished | C33: 编码-M1-F04-二维码管理 | D33: 马英虎 | E33: 2014-05-26 | F33: 2014-05-30 | G33: 40 | H33: 2014-05-26 | I33: 2014-05-30 | J33: 40 | K33: 0 | L33: 0
A34: Finished | C34: 编码-M1-F05-设施设备评价体系管理 | D34: 马英虎 | E34: 2014-06-02 | F34: 2014-06-06 | G34: 40 | H34: 2014-06-02 | I34: 2014-06-06 | J34: 40 | K34: 0 | L34: 0
A35: =IF(AND(B35="",C35=""),"",IF(H35="","Wait",IF(I35="","Processing","Finished"))) -> Finished | C35: 编码-M1-F03-巡检任务实施管理（web+安卓app） | D35: 孙强 | E35: 2014-05-12 | F35: 2014-05-16 | G35: 40 | H35: 2014-05-13 | I35: 2014-05-17 | J35: 40 | K35: =IF(OR(F35=0,I35=0),0,I35-F35) -> 1 | L35: =IF(OR(G35=0,J35=0),0,J35-G35) -> 0
A36: Finished | C36: 编码-M2-F01-数据查询与展现 | D36: 陈飞 | E36: 2014-06-02 | F36: 2014-06-06 | G36: 40 | H36: 2014-06-02 | I36: 2014-06-06 | J36: 40 | K36: 0 | L36: 0
A37: Finished | C37: 编码-M2-F02-与档案系统交互 | D37: 高才驰 | E37: 2014-05-26 | F37: 2014-05-30 | G37: 40 | H37: 2014-05-26 | I37: 2014-05-30 | J37: 40 | K37: =IF(OR(F37=0,I37=0),0,I37-F37) -> 0 | L37: =IF(OR(G37=0,J37=0),0,J37-G37) -> 0
A38: =IF(AND(B38="",C38=""),"",IF(H38="","Wait",IF(I38="","Processing","Finished"))) -> Finished | C38: 编码-M2-F02-高级查询及展现（基于搜索引擎） | D38: 孙强 | E38: 2014-05-19 | F38: 2014-05-23 | G38: 40 | H38: 2014-05-19 | I38: 2014-05-23 | J38: 40 | K38: =IF(OR(F38=0,I38=0),0,I38-F38) -> 0 | L38: =IF(OR(G38=0,J38=0),0,J38-G38) -> 0
A39: =IF(AND(B39="",C39=""),"",IF(H39="","Wait",IF(I39="","Processing","Finished"))) -> Finished | C39: 编码-M3-F02-数据交换 | D39: 孙强 | E39: 2014-05-26 | F39: 2014-05-30 | G39: 40 | H39: 2014-05-26 | I39: 2014-05-30 | J39: 40 | K39: =IF(OR(F39=0,I39=0),0,I39-F39) -> 0 | L39: =IF(OR(G39=0,J39=0),0,J39-G39) -> 0
A40: Finished | C40: 代码编译集成 | D40: 马英虎 | E40: 2014-06-10 | F40: 2014-06-11 | G40: 8 | H40: 2014-06-10 | I40: 2014-06-11 | J40: 8 | K40: 0 | L40: 0
A41: =IF(AND(B41="",C41=""),"",IF(H41="","Wait",IF(I41="","Processing","Finished"))) -> Finished | C41: 功能测试 | D41: 高才驰，孙强，马英虎，殷萍 | E41: 2014-06-11 | F41: 2014-07-01 | G41: 360 | H41: 2014-06-11 | I41: 2014-07-01 | J41: 360 | K41: =IF(OR(F41=0,I41=0),0,I41-F41) -> 0 | L41: =IF(OR(G41=0,J41=0),0,J41-G41) -> 0
A42: =IF(AND(B42="",C42=""),"",IF(H42="","Wait",IF(I42="","Processing","Finished"))) -> Finished | C42: 缺陷修复 | D42: 全体开发人员 | E42: 2014-06-11 | F42: 2014-07-01 | G42: 480 | H42: 2014-06-11 | I42: 2014-07-01 | J42: 480 | K42: =IF(OR(F42=0,I42=0),0,I42-F42) -> 0 | L42: =IF(OR(G42=0,J42=0),0,J42-G42) -> 0
A43: Finished | C43: 系统测试版本发布 | D43: 马英虎 | E43: 2014-07-02 | F43: 2014-07-03 | G43: 8 | H43: 2014-07-02 | I43: 2014-07-03 | J43: 8 | K43: 0 | L43: 0
A44: Finished | C44: 系统测试 | D44: 高才驰，孙强，马英虎，殷萍 | E44: 2014-07-04 | F44: 2014-07-20 | G44: 260 | H44: 2014-07-04 | I44: 2014-07-20 | J44: 260 | K44: 0 | L44: 0
A45: Finished | C45: 测试缺陷修复 | D45: 全体开发人员 | E45: 2014-07-04 | F45: 2014-07-25 | G45: 480 | H45: 2014-07-04 | I45: 2014-07-25 | J45: 480 | K45: 0 | L45: 0
A46: =IF(AND(B46="",C46=""),"",IF(H46="","Wait",IF(I46="","Processing","Finished"))) -> Finished | C46: 用户手册编写 | D46: 王晓勇 | E46: 2014-07-14 | F46: 2014-07-25 | G46: 40 | H46: 2014-07-14 | I46: 2014-07-25 | J46: 40 | K46: =IF(OR(F46=0,I46=0),0,I46-F46) -> 0 | L46: =IF(OR(G46=0,J46=0),0,J46-G46) -> 0
A47: Finished | C47: 编制开发里程碑报告 | D47: 高才驰 | E47: 2014-07-25 | F47: 2014-07-25 | G47: 8 | H47: 2014-07-25 | I47: 2014-07-25 | J47: 8 | K47: 0 | L47: 0
A48: Finished | B48: 交付与验收 | E48: =IF(COUNTA(E49:E55)>0,MIN(E49:E55),"") -> 2014-07-25 | F48: =IF(COUNTA(F49:F55)>0,MAX(F49:F55),"") -> 2014-10-31 | G48: =SUM(G49:G55) -> 220 | H48: =IF(COUNTA(H49:H55)>0,MIN(H49:H55),"") -> 2014-07-25 | I48: =IF(COUNTA(I49:I55)>0,MAX(I49:I55),"") -> 2014-08-15 | J48: =SUM(J49:J55) -> 170 | K48: =SUM(K49:K55) -> 0
A49: =IF(AND(B49="",C49=""),"",IF(H49="","Wait",IF(I49="","Processing","Finished"))) -> Finished | C49: 系统部署 | D49: 高才驰，马英虎 | E49: 2014-07-25 | F49: 2014-07-30 | G49: 96 | H49: 2014-07-25 | I49: 2014-07-30 | J49: 88 | K49: =IF(OR(F49=0,I49=0),0,I49-F49) -> 0 | L49: =IF(OR(G49=0,J49=0),0,J49-G49) -> -8
A50: Finished | C50: 客户培训 | D50: 高才驰，戴鹏飞，王晓勇 | E50: 2014-07-28 | F50: 2014-08-01 | G50: 40 | H50: 2014-07-28 | I50: 2014-08-01 | J50: 32 | K50: =IF(OR(F50=0,I50=0),0,I50-F50) -> 0 | L50: =IF(OR(G50=0,J50=0),0,J50-G50) -> -8
A51: Finished | C51: 初验 | D51: 高才驰,业主 | E51: 2014-08-04 | F51: 2014-08-15 | G51: 24 | H51: 2014-08-04 | I51: 2014-08-15 | J51: 40 | K51: =IF(OR(F51=0,I51=0),0,I51-F51) -> 0 | L51: =IF(OR(G51=0,J51=0),0,J51-G51) -> 16
A52: =IF(AND(B52="",C52=""),"",IF(H52="","Wait",IF(I52="","Processing","Finished"))) -> Finished | C52: 发布交付基线 | D52: 袁晓东，高才驰 | E52: 2014-08-15 | F52: 2014-08-15 | G52: 4 | H52: 2014-08-15 | I52: 2014-08-15 | J52: 4 | K52: =IF(OR(F52=0,I52=0),0,I52-F52) -> 0 | L52: =IF(OR(G52=0,J52=0),0,J52-G52) -> 0
A53: =IF(AND(B53="",C53=""),"",IF(H53="","Wait",IF(I53="","Processing","Finished"))) -> Finished | C53: 编制交付里程碑报告 | D53: 高才驰 | E53: 2014-08-15 | F53: 2014-08-15 | G53: 8 | H53: 2014-08-15 | I53: 2014-08-15 | J53: 6 | K53: 0 | L53: -2
A54: Processing | C54: 试运行 | D54: 高才驰，马英虎 | E54: 2014-08-18 | F54: 2014-10-30 | G54: 40 | H54: 2014-08-18 | K54: =IF(OR(F54=0,I54=0),0,I54-F54) -> 0 | L54: =IF(OR(G54=0,J54=0),0,J54-G54) -> 0
A55: Wait | C55: 终验 | D55: 高才驰，业主 | E55: 2014-10-31 | F55: 2014-10-31 | G55: 8 | K55: =IF(OR(F55=0,I55=0),0,I55-F55) -> 0 | L55: =IF(OR(G55=0,J55=0),0,J55-G55) -> 0
A56: Finished | B56: 项目管理及其他 | E56: =IF(COUNTA(E57:E125)>0,MIN(E57:E125),"") -> 2014-02-20 | F56: =IF(COUNTA(F57:F125)>0,MAX(F57:F125),"") -> 2014-08-15 | G56: =SUM(G57:G125) -> 426 | H56: =IF(COUNTA(H57:H125)>0,MIN(H57:H125),"") -> 2014-02-20 | I56: =IF(COUNTA(I57:I125)>0,MAX(I57:I125),"") -> 2014-08-15 | J56: =SUM(J57:J125) -> 453 | K56: =SUM(K57:K58) -> 0
A57: =IF(AND(B57="",C57=""),"",IF(H57="","Wait",IF(I57="","Processing","Finished"))) -> Finished | C57: 编写项目开工报告 | D57: 高才驰 | E57: 2014-02-20 | F57: 2014-02-21 | G57: 4 | H57: 2014-02-20 | I57: 2014-02-21 | J57: 4 | K57: =IF(OR(F57=0,I57=0),0,I57-F57) -> 0 | L57: =IF(OR(G57=0,J57=0),0,J57-G57) -> 0
A58: Finished | C58: 项目估算 | D58: 高才驰、马英虎、孙强 | E58: 2014-02-21 | F58: 2014-02-22 | G58: 4 | H58: 2014-02-21 | I58: 2014-02-22 | J58: 4 | K58: 0 | L58: 0
A59: Finished | C59: 制定项目整体计划 | D59: 高才驰，袁晓冬 | E59: 2014-02-22 | F59: 2014-02-24 | G59: 8 | H59: 2014-02-22 | I59: 2014-02-24 | J59: 10 | K59: 0 | L59: 2
A60: Finished | C60: 评审项目整体计划 | D60: 项目团队，领导，业主 | E60: 2014-02-25 | F60: 2014-02-25 | G60: 16 | H60: 2014-02-25 | I60: 2014-02-25 | J60: 16 | K60: 0 | L60: 0
A61: =IF(AND(B61="",C61=""),"",IF(H61="","Wait",IF(I61="","Processing","Finished"))) -> Finished | C61: 隧道设施设备编码规则培训 | D61: 李红卫、王晓勇、高才驰、马英虎、孙强、陈飞、潘虎 | E61: 2014-03-24 | F61: 2014-03-24 | G61: 6 | H61: 2014-03-24 | I61: 2014-03-24 | J61: 6 | K61: =IF(OR(F61=0,I61=0),0,I61-F61) -> 0 | L61: =IF(OR(G61=0,J61=0),0,J61-G61) -> 0
A62: =IF(AND(B62="",C62=""),"",IF(H62="","Wait",IF(I62="","Processing","Finished"))) -> Finished | C62: 设施设备巡检规则、设施设备盘点后复核培训 | D62: 李红卫、王晓勇、高才驰、马英虎、孙强、陈飞、潘虎 | E62: 2014-04-21 | F62: 2014-04-21 | G62: 6 | H62: 2014-04-21 | I62: 2014-04-21 | J62: 6 | K62: =IF(OR(F62=0,I62=0),0,I62-F62) -> 0 | L62: =IF(OR(G62=0,J62=0),0,J62-G62) -> 0
A63: =IF(AND(B63="",C63=""),"",IF(H63="","Wait",IF(I63="","Processing","Finished"))) -> Finished | C63: 搜索引擎培训 | D63: 高才驰、马英虎、潘虎、孙强 | E63: 2014-04-30 | F63: 2014-04-30 | G63: 8 | H63: 2014-04-30 | I63: 2014-04-30 | J63: 8 | K63: =IF(OR(F63=0,I63=0),0,I63-F63) -> 0 | L63: =IF(OR(G63=0,J63=0),0,J63-G63) -> 0
A64: =IF(AND(B64="",C64=""),"",IF(H64="","Wait",IF(I64="","Processing","Finished"))) -> Finished | C64: 安卓开发培训 | D64: 肖常衍、马英虎、潘虎、孙强、陈飞 | E64: 2014-05-26 | F64: 2014-05-26 | G64: 8 | H64: 2014-05-26 | I64: 2014-05-26 | J64: 8 | K64: =IF(OR(F64=0,I64=0),0,I64-F64) -> 0 | L64: =IF(OR(G64=0,J64=0),0,J64-G64) -> 0
A65: Finished | C65: 维护详细进度计划 | D65: 高才驰 | E65: 2014-02-20 | F65: 2014-08-15 | H65: 2014-02-20 | I65: 2014-08-15 | K65: 0 | L65: 0
A66: Finished | C66: 第1周 | D66: 高才驰 | E66: 2014-02-21 | F66: 2014-02-21 | G66: 3 | H66: 2014-02-21 | I66: 2014-02-21 | J66: 3
A67: Finished | C67: 第2周 | D67: 高才驰 | E67: 2014-02-28 | F67: 2014-02-28 | G67: 2 | H67: 2014-02-28 | I67: 2014-02-28 | J67: 2 | K67: =IF(OR(F67=0,I67=0),0,I67-F67) -> 0 | L67: =IF(OR(G67=0,J67=0),0,J67-G67) -> 0
A68: Finished | C68: 第3周 | D68: 高才驰 | E68: 2014-03-07 | F68: 2014-03-07 | G68: 2 | H68: 2014-03-07 | I68: 2014-03-07 | J68: 2 | K68: 0 | L68: 0
A69: Finished | C69: 第4周 | D69: 高才驰 | E69: 2014-03-14 | F69: 2014-03-14 | G69: 2 | H69: 2014-03-14 | I69: 2014-03-14 | J69: 2 | K69: 0 | L69: 0
A70: Finished | C70: 第5周 | D70: 高才驰 | E70: 2014-03-21 | F70: 2014-03-21 | G70: 2 | H70: 2014-03-21 | I70: 2014-03-21 | J70: 2 | K70: 0 | L70: 0
A71: Finished | C71: 第6周 | D71: 高才驰 | E71: 2014-03-28 | F71: 2014-03-28 | G71: 2 | H71: 2014-03-28 | I71: 2014-03-28 | J71: 2 | K71: 0 | L71: 0
A72: Finished | C72: 第7周 | D72: 高才驰 | E72: 2014-04-04 | F72: 2014-04-04 | G72: 2 | H72: 2014-04-04 | I72: 2014-04-04 | J72: 2 | K72: 0 | L72: 0
A73: Finished | C73: 第8周 | D73: 高才驰 | E73: 2014-04-11 | F73: 2014-04-11 | G73: 2 | H73: 2014-04-11 | I73: 2014-04-11 | J73: 2 | K73: 0 | L73: 0
A74: Finished | C74: 第9周 | D74: 高才驰 | E74: 2014-04-18 | F74: 2014-04-18 | G74: 2 | H74: 2014-04-18 | I74: 2014-04-18 | J74: 2 | K74: 0 | L74: 0
A75: Finished | C75: 第10周 | D75: 高才驰 | E75: 2014-04-25 | F75: 2014-04-25 | G75: 2 | H75: 2014-04-25 | I75: 2014-04-25 | J75: 2 | K75: 0 | L75: 0
A76: Finished | C76: 第11周 | D76: 高才驰 | E76: 2014-05-02 | F76: 2014-05-02 | G76: 2 | H76: 2014-05-04 | I76: 2014-05-04 | J76: 2 | K76: 2 | L76: 0
A77: Finished | C77: 第12周 | D77: 高才驰 | E77: 2014-05-09 | F77: 2014-05-09 | G77: 2 | H77: 2014-05-09 | I77: 2014-05-09 | J77: 2 | K77: 0 | L77: 0
A78: Finished | C78: 第13周 | D78: 高才驰 | E78: 2014-05-16 | F78: 2014-05-16 | G78: 2 | H78: 2014-05-16 | I78: 2014-05-16 | J78: 2 | K78: 0 | L78: 0
A79: Finished | C79: 第14周 | D79: 高才驰 | E79: 2014-05-23 | F79: 2014-05-23 | G79: 2 | H79: 2014-05-23 | I79: 2014-05-23 | J79: 2 | K79: 0 | L79: 0
A80: Finished | C80: 第15周 | D80: 高才驰 | E80: 2014-05-30 | F80: 2014-05-30 | G80: 2 | H80: 2014-05-30 | I80: 2014-05-30 | J80: 2 | K80: 0 | L80: 0
A81: Finished | C81: 第16周 | D81: 高才驰 | E81: 2014-06-06 | F81: 2014-06-06 | G81: 2 | H81: 2014-06-06 | I81: 2014-06-06 | J81: 2 | K81: 0 | L81: 0
A82: Finished | C82: 第17周 | D82: 高才驰 | E82: 2014-06-13 | F82: 2014-06-13 | G82: 2 | H82: 2014-06-13 | I82: 2014-06-13 | J82: 2 | K82: 0 | L82: 0
A83: Finished | C83: 第18周 | D83: 高才驰 | E83: 2014-06-20 | F83: 2014-06-20 | G83: 1.5 | H83: 2014-06-20 | I83: 2014-06-20 | J83: 1.5 | K83: 0 | L83: 0
A84: Finished | C84: 第19周 | D84: 高才驰 | E84: 2014-06-27 | F84: 2014-06-27 | G84: 1.5 | H84: 2014-06-27 | I84: 2014-06-27 | J84: 1.5 | K84: 0 | L84: 0
A85: Finished | C85: 第20周 | D85: 高才驰 | E85: 2014-07-04 | F85: 2014-07-04 | G85: 1.5 | H85: 2014-07-04 | I85: 2014-07-04 | J85: 1.5 | K85: 0 | L85: 0
A86: Finished | C86: 第21周 | D86: 高才驰 | E86: 2014-07-11 | F86: 2014-07-11 | G86: 1.5 | H86: 2014-07-11 | I86: 2014-07-11 | J86: 1.5 | K86: 0 | L86: 0
A87: Finished | C87: 第22周 | D87: 高才驰 | E87: 2014-07-18 | F87: 2014-07-18 | G87: 1.5 | H87: 2014-07-18 | I87: 2014-07-18 | J87: 2 | K87: 0 | L87: 0.5
A88: Finished | C88: 第23周 | D88: 高才驰 | E88: 2014-07-25 | F88: 2014-07-25 | G88: 1.5 | H88: 2014-07-25 | I88: 2014-07-25 | J88: 2 | K88: 0 | L88: 0.5
A89: Finished | C89: 第24周 | D89: 高才驰 | E89: 2014-08-01 | F89: 2014-08-01 | G89: 1.5 | H89: 2014-08-01 | I89: 2014-08-01 | J89: 1.5 | K89: 0 | L89: 0
A90: Finished | C90: 第25周 | D90: 高才驰 | E90: 2014-08-08 | F90: 2014-08-08 | G90: 1.5 | H90: 2014-08-08 | I90: 2014-08-08 | J90: 1.5 | K90: 0 | L90: 0
A91: Finished | C91: 第26周 | D91: 高才驰 | E91: 2014-08-15 | F91: 2014-08-15 | G91: 1 | H91: 2014-08-15 | I91: 2014-08-15 | J91: 1 | K91: 0 | L91: 0
A92: Finished | C92: 项目状态报告（编制报告，召开例会） | D92: 项目团队，领导，业主 | E92: 2014-02-20 | F92: 2014-08-15 | H92: 2014-02-20 | I92: 2014-08-15 | K92: 0 | L92: 0
A93: =IF(AND(B93="",C93=""),"",IF(H93="","Wait",IF(I93="","Processing","Finished"))) -> Finished | C93: 第2周 | D93: 项目团队，领导，业主 | E93: 2014-02-28 | F93: 2014-02-28 | G93: 20 | H93: 2014-02-28 | I93: 2014-02-28 | J93: 24 | K93: 0 | L93: 4
A94: Finished | C94: 第4周 | D94: 项目团队，领导，业主 | E94: 2014-03-14 | F94: 2014-03-14 | G94: 16 | H94: 2014-03-14 | I94: 2014-03-14 | J94: 16 | K94: 0 | L94: 0
A95: Finished | C95: 第6周 | D95: 项目团队，领导，业主 | E95: 2014-03-28 | F95: 2014-03-28 | G95: 16 | H95: 2014-03-28 | I95: 2014-03-28 | J95: 18 | K95: 0 | L95: 2
A96: Finished | C96: 第8周 | D96: 项目团队，领导，业主 | E96: 2014-04-11 | F96: 2014-04-11 | G96: 16 | H96: 2014-04-11 | I96: 2014-04-11 | J96: 16 | K96: 0 | L96: 0
A97: Finished | C97: 第10周 | D97: 项目团队，领导，业主 | E97: 2014-04-25 | F97: 2014-04-25 | G97: 16 | H97: 2014-04-25 | I97: 2014-04-25 | J97: 20 | K97: 0 | L97: 4
A98: Finished | C98: 第12周 | D98: 项目团队，领导，业主 | E98: 2014-05-09 | F98: 2014-05-09 | G98: 16 | H98: 2014-05-09 | I98: 2014-05-09 | J98: 20 | K98: 0 | L98: 4
A99: Finished | C99: 第14周 | D99: 项目团队，领导，业主 | E99: 2014-05-23 | F99: 2014-05-23 | G99: 16 | H99: 2014-05-23 | I99: 2014-05-23 | J99: 28 | K99: 0 | L99: 12
A100: Finished | C100: 第16周 | D100: 项目团队，领导，业主 | E100: 2014-06-06 | F100: 2014-06-06 | G100: 16 | H100: 2014-06-06 | I100: 2014-06-06 | J100: 16 | K100: 0 | L100: 0
A101: Finished | C101: 第18周 | D101: 项目团队，领导，业主 | E101: 2014-06-20 | F101: 2014-06-20 | G101: 16 | H101: 2014-06-20 | I101: 2014-06-20 | J101: 14 | K101: 0 | L101: -2
A102: =IF(AND(B102="",C102=""),"",IF(H102="","Wait",IF(I102="","Processing","Finished"))) -> Finished | C102: 第20周 | D102: 项目团队，领导，业主 | E102: 2014-07-04 | F102: 2014-07-04 | G102: 16 | H102: 2014-07-04 | I102: 2014-07-04 | J102: 16 | K102: =IF(OR(F102=0,I102=0),0,I102-F102) -> 0 | L102: =IF(OR(G102=0,J102=0),0,J102-G102) -> 0
A103: Finished | C103: 第22周 | D103: 项目团队，领导，业主 | E103: 2014-07-18 | F103: 2014-07-18 | G103: 16 | H103: 2014-07-18 | I103: 2014-07-18 | J103: 16 | K103: 0 | L103: 0
A104: Finished | C104: 第24周 | D104: 项目团队，领导，业主 | E104: 2014-08-01 | F104: 2014-08-01 | G104: 16 | H104: 2014-08-01 | I104: 2014-08-01 | J104: 16 | K104: 0 | L104: 0
A105: Finished | C105: 第26周 | D105: 项目团队，领导，业主 | E105: 2014-08-15 | F105: 2014-08-15 | G105: 20 | H105: 2014-08-15 | I105: 2014-08-15 | J105: 20 | K105: 0 | L105: 0
A106: Finished | C106: 识别及管理项目风险 | D106: 高才驰 | E106: 2014-02-20 | F106: 2014-08-15 | H106: 2014-02-20 | I106: 2014-08-15 | K106: =IF(OR(F106=0,I106=0),0,I106-F106) -> 0 | L106: =IF(OR(G106=0,J106=0),0,J106-G106) -> 0
A107: Finished | C107: 需求及设计里程碑阶段 | D107: 高才驰 | E107: 2014-02-20 | F107: 2014-04-25 | G107: 12 | H107: 2014-02-20 | I107: 2014-04-25 | J107: 12 | K107: 0 | L107: 0
A108: Finished | C108: 开发里程碑阶段 | D108: 高才驰 | E108: 2014-04-26 | F108: 2014-07-25 | G108: 8 | H108: 2014-04-26 | I108: 2014-07-25 | J108: 8 | K108: 0 | L108: 0
A109: Finished | C109: 交付里程碑阶段 | D109: 高才驰 | E109: 2014-07-26 | F109: 2014-08-15 | G109: 4 | H109: 2014-07-26 | I109: 2014-08-15 | J109: 4 | K109: 0 | L109: 0
A110: Finished | C110: 识别及管理项目问题 | D110: 高才驰 | E110: 2014-02-20 | F110: 2014-08-15 | H110: 2014-02-20 | I110: 2014-08-15 | K110: 0 | L110: 0
A111: Finished | C111: 需求与调研分析阶段 | D111: 高才驰 | E111: 2014-02-20 | F111: 2014-04-10 | G111: 5 | H111: 2014-02-20 | I111: 2014-04-10 | J111: 5 | K111: 0 | L111: 0
A112: Finished | C112: 系统设计阶段 | D112: 高才驰 | E112: 2014-04-11 | F112: 2014-04-25 | G112: 2 | H112: 2014-04-11 | I112: 2014-04-25 | J112: 2 | K112: 0 | L112: 0
A113: Finished | C113: 编码及测试阶段 | D113: 高才驰 | E113: 2014-04-26 | F113: 2014-07-25 | G113: 12 | H113: 2014-04-26 | I113: 2014-07-25 | J113: 12 | K113: 0 | L113: 0
A114: Finished | C114: 交付与验收阶段 | D114: 高才驰 | E114: 2014-07-26 | F114: 2014-08-15 | G114: 5 | H114: 2014-07-26 | I114: 2014-08-15 | J114: 5 | K114: 0 | L114: 0
A115: Finished | C115: 收集和整理度量数据 | D115: 高才驰 | E115: 2014-02-20 | F115: 2014-08-15 | H115: 2014-02-20 | I115: 2014-08-15 | K115: 0 | L115: 0
A116: =IF(AND(B116="",C116=""),"",IF(H116="","Wait",IF(I116="","Processing","Finished"))) -> Finished | C116: 需求与调研分析阶段 | D116: 高才驰 | E116: 2014-02-20 | F116: 2014-04-10 | G116: 3 | H116: 2014-02-20 | I116: 2014-04-10 | J116: 3 | K116: 0 | L116: 0
A117: Finished | C117: 系统设计阶段 | D117: 高才驰 | E117: 2014-04-11 | F117: 2014-04-25 | G117: 1 | H117: 2014-04-11 | I117: 2014-04-25 | J117: 1 | K117: 0 | L117: 0
A118: Finished | C118: 编码及测试阶段 | D118: 高才驰 | E118: 2014-04-26 | F118: 2014-07-25 | G118: 5 | H118: 2014-04-26 | I118: 2014-07-25 | J118: 5 | K118: 0 | L118: 0
A119: Finished | C119: 交付与验收阶段 | D119: 高才驰 | E119: 2014-07-26 | F119: 2014-08-15 | G119: 3 | H119: 2014-07-26 | I119: 2014-08-15 | J119: 3 | K119: 0 | L119: 0
A120: Finished | C120: 配置项状态稽核 | D120: 马英虎 | E120: 2014-02-20 | F120: 2014-08-15 | G120: 6 | H120: 2014-02-20 | I120: 2014-08-15 | J120: 6 | K120: 0 | L120: 0
A121: Finished | C121: 需求变更引起的需求文档修改 | D121: 王晓勇，高才驰 | E121: 2014-05-15 | F121: 2014-05-16 | G121: 8 | H121: 2014-05-15 | I121: 2014-05-16 | J121: 8 | K121: 0 | L121: 0
A122: Finished | C122: 需求变更引起的设计文档修改 | D122: 王晓勇，高才驰 | E122: 2014-05-15 | F122: 2014-05-16 | G122: 8 | H122: 2014-05-15 | I122: 2014-05-16 | J122: 8 | K122: 0 | L122: 0
A123: =IF(AND(B123="",C123=""),"",IF(H123="","Wait",IF(I123="","Processing","Finished"))) -> Finished | C123: 变更管理与跟踪 | D123: 高才驰，袁晓冬 | E123: 2014-05-15 | F123: 2014-05-17 | G123: 4 | H123: 2014-05-15 | I123: 2014-05-17 | J123: 4 | K123: =IF(OR(F123=0,I123=0),0,I123-F123) -> 0 | L123: =IF(OR(G123=0,J123=0),0,J123-G123) -> 0
A124: Finished | C124: 项目总结报告 | D124: 高才驰 | E124: 2014-08-14 | F124: 2014-08-15 | G124: 8 | H124: 2014-08-14 | I124: 2014-08-15 | J124: 8 | K124: 0 | L124: 0
A125: Finished | C125: 项目资料整理 | D125: 高才驰 | E125: 2014-08-14 | F125: 2014-08-15 | G125: 8 | H125: 2014-08-14 | I125: 2014-08-15 | J125: 8 | K125: 0 | L125: 0
A126: =IF(AND(B126="",C126=""),"",IF(H126="","Wait",IF(I126="","Processing","Finished"))) -> Wait | B126: 维护 | E126: =IF(COUNTA(E127:E128)>0,MIN(E127:E128),"") -> 2014-11-01 | F126: =IF(COUNTA(F127:F128)>0,MIN(F127:F128),"") -> 2016-10-31 | G126: =SUM(G127:G128) -> 240 | H126: =IF(COUNTA(H127:H128)>0,MIN(H127:H128),"") ->  | I126: =IF(COUNTA(I127:I128)>0,MAX(I127:I128),"") ->  | J126: =SUM(J127:J128) -> 0 | K126: =SUM(K127:K128) -> 0
A127: =IF(AND(B127="",C127=""),"",IF(H127="","Wait",IF(I127="","Processing","Finished"))) -> Wait | C127: 运行维护 | D127: 孙强 | E127: 2014-11-01 | F127: 2016-10-31 | G127: 240 | K127: =IF(OR(F127=0,I127=0),0,I127-F127) -> 0 | L127: 0
A128: =IF(AND(B128="",C128=""),"",IF(H128="","Wait",IF(I128="","Processing","Finished"))) ->  | K128: 0 | L128: 0

Sheet 参数 (hidden)
A1: 阶段 | C1: 工作分类
A2: 需求调研与分析 | C2: 需求
A3: 系统设计 | C3: 设计
A4: 编码与测试 | C4: 编码
A5: 交付与验收 | C5: 测试
A6: 维护 | C6: 其他
A7: 项目管理及其他
